[Event "GrandPrix_29.05"]
[Site "Chess.com"]
[Date "2020.05.29"]
[Round "2"]
[White "Tormoz"]
[Black "Vnebo"]
[Result "1/2-1/2"]
[WhiteElo "2562"]
[BlackElo "2180"]
[TimeControl "600+2"]
[EndTime "10:01:32 PDT"]
[Termination "Game drawn - insufficient material"]

1. d4 {[%clk 0:10:01.8]} 1... d5 {[%clk 0:09:53.6]} 2. Nf3 {[%clk 0:09:56.8]}
2... Nf6 {[%clk 0:09:53.6]} 3. c4 {[%clk 0:09:57.2]} 3... e6 {[%clk 0:09:54.4]}
4. g3 {[%clk 0:09:57.8]} 4... Be7 {[%clk 0:09:52.7]} 5. Bg2 {[%clk 0:09:58]}
5... O-O {[%clk 0:09:54]} 6. Qc2 {[%clk 0:09:58.9]} 6... c6 {[%clk 0:09:53.2]}
7. O-O {[%clk 0:09:58.9]} 7... Nbd7 {[%clk 0:09:53.7]} 8. Rd1 {[%clk 0:09:59.5]}
8... b6 {[%clk 0:09:53.2]} 9. b3 {[%clk 0:09:59.8]} 9... Bb7 {[%clk 0:09:50.3]}
10. Nc3 {[%clk 0:10:00.7]} 10... Rc8 {[%clk 0:09:38.9]} 11. e4 {[%clk
0:10:00.9]} 11... dxe4 {[%clk 0:08:33.8]} 12. Nxe4 {[%clk 0:10:00.8]} 12... Nxe4
{[%clk 0:08:34.8]} 13. Qxe4 {[%clk 0:10:01]} 13... Nf6 {[%clk 0:08:35.8]} 14.
Qc2 {[%clk 0:10:01.2]} 14... Qc7 {[%clk 0:08:27.5]} 15. Bf4 {[%clk 0:10:01.3]}
15... Bd6 {[%clk 0:08:22.5]} 16. Bxd6 {[%clk 0:10:02.2]} 16... Qxd6 {[%clk
0:08:23.2]} 17. c5 {[%clk 0:10:04.1]} 17... Qc7 {[%clk 0:08:21.1]} 18. Ne5
{[%clk 0:10:01.1]} 18... Rfd8 {[%clk 0:08:10.9]} 19. Nc4 {[%clk 0:09:57.3]}
19... Rb8 {[%clk 0:07:51.6]} 20. a3 {[%clk 0:09:38.2]} 20... Ba6 {[%clk
0:07:36.6]} 21. Ne5 {[%clk 0:09:32.7]} 21... Rbc8 {[%clk 0:07:27]} 22. Nxc6
{[%clk 0:09:19.3]} 22... Re8 {[%clk 0:07:24.2]} 23. b4 {[%clk 0:08:43.2]} 23...
Bb7 {[%clk 0:07:04.3]} 24. b5 {[%clk 0:08:04.5]} 24... a6 {[%clk 0:06:38.2]} 25.
a4 {[%clk 0:07:56]} 25... Nd5 {[%clk 0:06:24.4]} 26. Bxd5 {[%clk 0:07:04.4]}
26... exd5 {[%clk 0:06:26.3]} 27. cxb6 {[%clk 0:06:56.4]} 27... Qxb6 {[%clk
0:06:24.2]} 28. Rac1 {[%clk 0:06:57.2]} 28... h6 {[%clk 0:05:26.9]} 29. Qc5
{[%clk 0:06:42.9]} 29... Qxc5 {[%clk 0:05:15.1]} 30. Rxc5 {[%clk 0:06:44.8]}
30... axb5 {[%clk 0:04:59.6]} 31. axb5 {[%clk 0:06:46.7]} 31... Bxc6 {[%clk
0:04:58]} 32. bxc6 {[%clk 0:06:37.7]} 32... Re4 {[%clk 0:03:45.2]} 33. c7 {[%clk
0:05:18.6]} 33... Kf8 {[%clk 0:03:44.2]} 34. Rb1 {[%clk 0:05:14.6]} 34... Ke7
{[%clk 0:03:09.3]} 35. Rb8 {[%clk 0:05:05]} 35... Kd7 {[%clk 0:03:09.8]} 36.
Rxd5+ {[%clk 0:05:02.5]} 36... Kxc7 {[%clk 0:03:10.3]} 37. Rb2 {[%clk 0:04:49]}
37... Re1+ {[%clk 0:02:53.1]} 38. Kg2 {[%clk 0:04:49.3]} 38... Rc1 {[%clk
0:02:54.9]} 39. Re2 {[%clk 0:04:28]} 39... Kc6 {[%clk 0:02:49.2]} 40. Rf5 {[%clk
0:04:04.1]} 40... Rc7 {[%clk 0:02:45.9]} 41. Re8 {[%clk 0:03:46.6]} 41... Kd6
{[%clk 0:01:56.6]} 42. Rd8+ {[%clk 0:02:56.5]} 42... Ke7 {[%clk 0:01:36.2]} 43.
Rg8 {[%clk 0:02:44.9]} 43... g6 {[%clk 0:00:51.2]} 44. Rf4 {[%clk 0:02:18.7]}
44... Rd7 {[%clk 0:00:44]} 45. Rg7 {[%clk 0:02:04.1]} 45... Ke8 {[%clk
0:00:21.5]} 46. Rg8+ {[%clk 0:00:38.5]} 46... Ke7 {[%clk 0:00:21.8]} 47. Kf3
{[%clk 0:00:40.1]} 47... Rd1 {[%clk 0:00:20.6]} 48. Ke3 {[%clk 0:00:40.8]} 48...
Rd6 {[%clk 0:00:18.6]} 49. Ra8 {[%clk 0:00:24]} 49... Re6+ {[%clk 0:00:17.9]}
50. Kf3 {[%clk 0:00:25]} 50... Rd3+ {[%clk 0:00:16.8]} 51. Kg2 {[%clk
0:00:25.7]} 51... f5 {[%clk 0:00:17.9]} 52. h4 {[%clk 0:00:21.5]} 52... h5
{[%clk 0:00:17.9]} 53. Ra5 {[%clk 0:00:16.3]} 53... Rd6 {[%clk 0:00:17]} 54. Ra4
{[%clk 0:00:17.3]} 54... Kf6 {[%clk 0:00:16.9]} 55. Kf1 {[%clk 0:00:18.4]} 55...
Re6 {[%clk 0:00:17.4]} 56. Ra2 {[%clk 0:00:17.6]} 56... Rd6 {[%clk 0:00:17.6]}
57. Ra4 {[%clk 0:00:18.3]} 57... Re6 {[%clk 0:00:18.7]} 58. Kg2 {[%clk
0:00:18.4]} 58... Rd6 {[%clk 0:00:19.2]} 59. Rb4 {[%clk 0:00:17.4]} 59... Kf7
{[%clk 0:00:17.5]} 60. Kf1 {[%clk 0:00:16.2]} 60... Re6 {[%clk 0:00:17.9]} 61.
Rc4 {[%clk 0:00:14.3]} 61... Kf6 {[%clk 0:00:18.4]} 62. Kg2 {[%clk 0:00:15.1]}
62... Rd6 {[%clk 0:00:19.2]} 63. f3 {[%clk 0:00:14.1]} 63... Rd2+ {[%clk
0:00:19]} 64. Kh3 {[%clk 0:00:14.6]} 64... Re6 {[%clk 0:00:17.4]} 65. Rc1 {[%clk
0:00:10.8]} 65... Ree2 {[%clk 0:00:17.5]} 66. Rh1 {[%clk 0:00:11.8]} 66... Rd3
{[%clk 0:00:18.8]} 67. Rh2 {[%clk 0:00:11.2]} 67... Ree3 {[%clk 0:00:17.4]} 68.
Rf2 {[%clk 0:00:11.9]} 68... Re1 {[%clk 0:00:18.4]} 69. Kg2 {[%clk 0:00:12.8]}
69... Rdd1 {[%clk 0:00:17.8]} 70. g4 {[%clk 0:00:14.2]} 70... Rg1+ {[%clk
0:00:18.4]} 71. Kh3 {[%clk 0:00:15.3]} 71... Rh1+ {[%clk 0:00:17.7]} 72. Rh2
{[%clk 0:00:16.2]} 72... hxg4+ {[%clk 0:00:15.5]} 73. fxg4 {[%clk 0:00:16.5]}
73... Rd3+ {[%clk 0:00:14.8]} 74. Kg2 {[%clk 0:00:17.2]} 74... Rhd1 {[%clk
0:00:13.2]} 75. g5+ {[%clk 0:00:16.4]} 75... Ke6 {[%clk 0:00:11.3]} 76. h5
{[%clk 0:00:15.5]} 76... R1d2+ {[%clk 0:00:10.2]} 77. Rf2 {[%clk 0:00:16.5]}
77... Rxf2+ {[%clk 0:00:09.4]} 78. Kxf2 {[%clk 0:00:18.4]} 78... gxh5 {[%clk
0:00:08.2]} 79. Rh4 {[%clk 0:00:18.6]} 79... Kf7 {[%clk 0:00:07.1]} 80. Ke2
{[%clk 0:00:19.6]} 80... Rg3 {[%clk 0:00:07.6]} 81. Rxh5 {[%clk 0:00:19.4]}
81... Kg6 {[%clk 0:00:08.5]} 82. Rh8 {[%clk 0:00:20.2]} 82... Rxg5 {[%clk
0:00:07.7]} 83. Kf3 {[%clk 0:00:19]} 83... Kf6 {[%clk 0:00:07.5]} 84. Rh6+
{[%clk 0:00:18]} 84... Rg6 {[%clk 0:00:07.6]} 85. Rh5 {[%clk 0:00:17.2]} 85...
Ke6 {[%clk 0:00:07.4]} 86. Rh8 {[%clk 0:00:15.5]} 86... Rg4 {[%clk 0:00:06.8]}
87. Rd8 {[%clk 0:00:16.1]} 87... Ke7 {[%clk 0:00:06.9]} 88. Rd5 {[%clk
0:00:16.4]} 88... Ke6 {[%clk 0:00:07.9]} 89. Re5+ {[%clk 0:00:16.5]} 89... Kf6
{[%clk 0:00:08.9]} 90. Ke3 {[%clk 0:00:16.1]} 90... Rg3+ {[%clk 0:00:09.6]} 91.
Kf4 {[%clk 0:00:15.1]} 91... Rg4+ {[%clk 0:00:10.2]} 92. Ke3 {[%clk 0:00:16.1]}
92... Rg3+ {[%clk 0:00:11.3]} 93. Ke2 {[%clk 0:00:16.7]} 93... Ra3 {[%clk
0:00:11.7]} 94. Rb5 {[%clk 0:00:16.8]} 94... Rc3 {[%clk 0:00:10.9]} 95. Rb6+
{[%clk 0:00:17.5]} 95... Ke7 {[%clk 0:00:09.2]} 96. Kd2 {[%clk 0:00:18.1]} 96...
Rf3 {[%clk 0:00:09.8]} 97. d5 {[%clk 0:00:18.8]} 97... Rg3 {[%clk 0:00:09.3]}
98. Re6+ {[%clk 0:00:17.8]} 98... Kd7 {[%clk 0:00:10.2]} 99. Rf6 {[%clk
0:00:19]} 99... Rf3 {[%clk 0:00:08.8]} 100. Ke2 {[%clk 0:00:20]} 100... Rh3
{[%clk 0:00:09.1]} 101. Rxf5 {[%clk 0:00:17.7]} 101... Kd6 {[%clk 0:00:10.3]}
102. Rg5 {[%clk 0:00:18.3]} 102... Ra3 {[%clk 0:00:10.7]} 103. Rh5 {[%clk
0:00:15.8]} 103... Rb3 {[%clk 0:00:11.7]} 104. Rg5 {[%clk 0:00:16.4]} 104... Ra3
{[%clk 0:00:12.9]} 105. Kd2 {[%clk 0:00:17.6]} 105... Ra5 {[%clk 0:00:13.5]}
106. Rg6+ {[%clk 0:00:18.4]} 106... Kd7 {[%clk 0:00:14.4]} 107. d6 {[%clk
0:00:17.5]} 107... Rd5+ {[%clk 0:00:14.6]} 108. Ke3 {[%clk 0:00:18.5]} 108...
Rxd6 {[%clk 0:00:16.5]} 109. Rxd6+ {[%clk 0:00:19.5]} 109... Kxd6 {[%clk
0:00:18.4]} 1/2-1/2

[Event "GrandPrix_29.05"]
[Site "Chess.com"]
[Date "2020.05.29"]
[Round "3"]
[White "Skatchkov_V"]
[Black "Glek_Igor"]
[Result "0-1"]
[WhiteElo "2177"]
[BlackElo "2507"]
[TimeControl "600+2"]
[EndTime "10:07:22 PDT"]
[Termination "Glek_Igor won by resignation"]

1. d4 {[%clk 0:09:58.4]} 1... e6 {[%clk 0:10:00]} 2. c4 {[%clk 0:09:59.5]} 2...
Bb4+ {[%clk 0:10:00.1]} 3. Bd2 {[%clk 0:09:58.9]} 3... Bxd2+ {[%clk 0:10:00.8]}
4. Nxd2 {[%clk 0:10:00]} 4... d6 {[%clk 0:09:42.6]} 5. Ngf3 {[%clk 0:10:00.6]}
5... Nd7 {[%clk 0:09:41.5]} 6. e4 {[%clk 0:09:53.3]} 6... e5 {[%clk 0:09:41.1]}
7. d5 {[%clk 0:09:41.1]} 7... a5 {[%clk 0:09:39.9]} 8. Be2 {[%clk 0:09:37.5]}
8... Nc5 {[%clk 0:09:32.4]} 9. O-O {[%clk 0:09:37.9]} 9... Ne7 {[%clk
0:09:22.4]} 10. Qc2 {[%clk 0:09:38.3]} 10... f5 {[%clk 0:09:19.5]} 11. Qb3
{[%clk 0:08:57.7]} 11... Nxb3 {[%clk 0:09:18.4]} 0-1

[Event "GrandPrix_29.05"]
[Site "Chess.com"]
[Date "2020.05.29"]
[Round "3"]
[White "Elshadchess"]
[Black "Saqo007"]
[Result "1-0"]
[WhiteElo "1794"]
[BlackElo "2020"]
[TimeControl "600+2"]
[EndTime "10:07:30 PDT"]
[Termination "Elshadchess won by checkmate"]

1. Nc3 {[%clk 0:10:01.8]} 1... c5 {[%clk 0:09:58]} 2. d4 {[%clk 0:10:02.1]} 2...
cxd4 {[%clk 0:09:58.5]} 3. Qxd4 {[%clk 0:10:04]} 3... Nc6 {[%clk 0:09:59.6]} 4.
Qh4 {[%clk 0:10:05]} 4... d5 {[%clk 0:09:59.9]} 5. Bg5 {[%clk 0:10:05.3]} 5...
h6 {[%clk 0:10:00]} 6. O-O-O {[%clk 0:10:03.3]} 6... d4 {[%clk 0:09:58.6]} 7. e3
{[%clk 0:09:44.2]} 7... Qa5 {[%clk 0:09:55.5]} 8. Rxd4 {[%clk 0:08:36.4]} 8...
Nxd4 {[%clk 0:09:51.3]} 9. Qxd4 {[%clk 0:08:36.5]} 9... e5 {[%clk 0:09:30.3]}
10. Bb5+ {[%clk 0:08:35.1]} 10... Qxb5 {[%clk 0:09:26.6]} 11. Qd8# {[%clk
0:08:34.7]} 1-0

[Event "GrandPrix_29.05"]
[Site "Chess.com"]
[Date "2020.05.29"]
[Round "3"]
[White "sahidi"]
[Black "fujiwara_hoga"]
[Result "1-0"]
[WhiteElo "2107"]
[BlackElo "2111"]
[TimeControl "600+2"]
[EndTime "10:12:23 PDT"]
[Termination "sahidi won by resignation"]

1. e4 {[%clk 0:10:01.9]} 1... e5 {[%clk 0:09:59.5]} 2. Nf3 {[%clk 0:10:02.3]}
2... Nc6 {[%clk 0:09:58.4]} 3. Bb5 {[%clk 0:09:59.9]} 3... a6 {[%clk 0:09:58]}
4. Ba4 {[%clk 0:09:58.8]} 4... Nf6 {[%clk 0:09:47.8]} 5. d3 {[%clk 0:09:57.1]}
5... b5 {[%clk 0:09:38.5]} 6. Bb3 {[%clk 0:09:56.8]} 6... Be7 {[%clk 0:09:37.8]}
7. O-O {[%clk 0:09:55.5]} 7... d6 {[%clk 0:09:38.5]} 8. h3 {[%clk 0:09:55.7]}
8... O-O {[%clk 0:09:22.5]} 9. c3 {[%clk 0:09:50.5]} 9... Na5 {[%clk 0:09:19.6]}
10. Bc2 {[%clk 0:09:51.1]} 10... c5 {[%clk 0:09:21]} 11. Bg5 {[%clk 0:09:50]}
11... Nc6 {[%clk 0:09:16.6]} 12. Bxf6 {[%clk 0:09:49.4]} 12... Bxf6 {[%clk
0:09:15.3]} 13. Nbd2 {[%clk 0:09:50.2]} 13... Be6 {[%clk 0:09:11.6]} 14. Bb3
{[%clk 0:09:46.5]} 14... d5 {[%clk 0:08:45.8]} 15. exd5 {[%clk 0:09:43.3]} 15...
Bxd5 {[%clk 0:08:45.4]} 16. Ne4 {[%clk 0:09:43.7]} 16... Be7 {[%clk 0:08:42.7]}
17. Re1 {[%clk 0:09:41.4]} 17... Qd7 {[%clk 0:08:10.1]} 18. Ng3 {[%clk
0:09:33.5]} 18... Bf6 {[%clk 0:07:49.3]} 19. Nh5 {[%clk 0:09:26.7]} 19... Bd8
{[%clk 0:06:34.2]} 20. Nxe5 {[%clk 0:09:20.7]} 20... Nxe5 {[%clk 0:06:32.6]} 21.
Rxe5 {[%clk 0:09:20.9]} 21... Bxb3 {[%clk 0:06:32]} 22. axb3 {[%clk 0:09:17.4]}
22... Qd6 {[%clk 0:06:27.8]} 23. Re1 {[%clk 0:08:54.5]} 23... Bc7 {[%clk
0:06:26.2]} 24. Ng3 {[%clk 0:08:54.9]} 24... Rfd8 {[%clk 0:06:23.4]} 25. Qf3
{[%clk 0:08:51.3]} 25... Qxd3 {[%clk 0:05:40.4]} 26. Re8+ {[%clk 0:08:45.5]} 1-0

[Event "GrandPrix_29.05"]
[Site "Chess.com"]
[Date "2020.05.29"]
[Round "3"]
[White "KJakubowski"]
[Black "PeshkaTheGreat"]
[Result "1-0"]
[WhiteElo "2533"]
[BlackElo "2234"]
[TimeControl "600+2"]
[EndTime "10:12:35 PDT"]
[Termination "KJakubowski won by resignation"]

1. e4 {[%clk 0:10:00.3]} 1... c5 {[%clk 0:09:58.4]} 2. Nf3 {[%clk 0:09:58.8]}
2... d6 {[%clk 0:09:58.8]} 3. d4 {[%clk 0:09:59]} 3... cxd4 {[%clk 0:10:00.4]}
4. Nxd4 {[%clk 0:09:59.7]} 4... Nf6 {[%clk 0:10:02.1]} 5. Nc3 {[%clk 0:10:00.7]}
5... g6 {[%clk 0:10:03.1]} 6. Be2 {[%clk 0:09:38.6]} 6... Bg7 {[%clk 0:10:01.5]}
7. O-O {[%clk 0:09:39.9]} 7... O-O {[%clk 0:10:01.7]} 8. Be3 {[%clk 0:09:25.6]}
8... Nc6 {[%clk 0:10:01]} 9. Nb3 {[%clk 0:09:16.7]} 9... Bd7 {[%clk 0:09:46.9]}
10. Qd2 {[%clk 0:08:59.5]} 10... Ng4 {[%clk 0:09:34.7]} 11. Bxg4 {[%clk
0:07:37.5]} 11... Bxg4 {[%clk 0:09:36.6]} 12. Bh6 {[%clk 0:07:36.7]} 12... a6
{[%clk 0:09:03.7]} 13. Bxg7 {[%clk 0:07:33.1]} 13... Kxg7 {[%clk 0:09:04.1]} 14.
f4 {[%clk 0:07:30.5]} 14... Be6 {[%clk 0:08:33.2]} 15. Kh1 {[%clk 0:07:17]}
15... Qb6 {[%clk 0:08:09.1]} 16. Nd5 {[%clk 0:06:53.9]} 16... Bxd5 {[%clk
0:07:55.4]} 17. exd5 {[%clk 0:06:54.4]} 17... Na7 {[%clk 0:07:54.3]} 18. Rae1
{[%clk 0:06:53]} 18... Rae8 {[%clk 0:07:52.3]} 19. f5 {[%clk 0:06:52]} 19... Nb5
{[%clk 0:07:24.8]} 20. Rxe7 {[%clk 0:06:35]} 20... Rxe7 {[%clk 0:07:18.8]} 21.
f6+ {[%clk 0:06:35.4]} 21... Kg8 {[%clk 0:07:20.3]} 22. Qh6 {[%clk 0:06:33]} 1-0

[Event "GrandPrix_29.05"]
[Site "Chess.com"]
[Date "2020.05.29"]
[Round "3"]
[White "chansen64"]
[Black "XeresLt"]
[Result "0-1"]
[WhiteElo "2046"]
[BlackElo "1825"]
[TimeControl "600+2"]
[EndTime "10:13:27 PDT"]
[Termination "XeresLt won by resignation"]

1. d4 {[%clk 0:10:01.9]} 1... Nf6 {[%clk 0:10:01]} 2. Nf3 {[%clk 0:10:00.9]}
2... g6 {[%clk 0:10:02.1]} 3. c4 {[%clk 0:10:00.8]} 3... Bg7 {[%clk 0:10:02.6]}
4. Nc3 {[%clk 0:10:01.9]} 4... O-O {[%clk 0:10:03.7]} 5. Bg5 {[%clk 0:10:02.2]}
5... d6 {[%clk 0:10:03.5]} 6. e3 {[%clk 0:10:02.4]} 6... c5 {[%clk 0:10:04.5]}
7. d5 {[%clk 0:10:02.8]} 7... a6 {[%clk 0:10:05]} 8. a4 {[%clk 0:10:02.9]} 8...
Re8 {[%clk 0:09:57.2]} 9. Be2 {[%clk 0:10:02.1]} 9... e6 {[%clk 0:09:56.8]} 10.
Nd2 {[%clk 0:09:58.8]} 10... h6 {[%clk 0:09:55.6]} 11. Bh4 {[%clk 0:09:59]}
11... exd5 {[%clk 0:09:47.8]} 12. cxd5 {[%clk 0:09:59.2]} 12... Nbd7 {[%clk
0:09:31]} 13. O-O {[%clk 0:09:54]} 13... b6 {[%clk 0:09:04.4]} 14. Bg3 {[%clk
0:09:37.6]} 14... Ne5 {[%clk 0:08:51.2]} 15. f4 {[%clk 0:09:15.6]} 15... Neg4
{[%clk 0:08:51.6]} 16. Nc4 {[%clk 0:09:02.7]} 16... Nxe3 {[%clk 0:08:47.2]} 17.
Nxe3 {[%clk 0:09:01.6]} 17... Rxe3 {[%clk 0:08:49.1]} 18. Qd2 {[%clk 0:08:47.2]}
18... Re7 {[%clk 0:08:15]} 19. Bf3 {[%clk 0:08:43.3]} 19... Bf5 {[%clk
0:08:08.2]} 20. Rfe1 {[%clk 0:08:42.7]} 20... Raa7 {[%clk 0:08:07.3]} 21. h3
{[%clk 0:08:41.5]} 21... Qe8 {[%clk 0:07:49.3]} 22. Bf2 {[%clk 0:08:32.2]} 22...
Ne4 {[%clk 0:07:32.8]} 23. Nxe4 {[%clk 0:08:25.9]} 23... Bxe4 {[%clk 0:07:33.8]}
24. Be2 {[%clk 0:08:20.3]} 24... f5 {[%clk 0:07:19.1]} 25. Bc4 {[%clk
0:08:16.6]} 25... Kh7 {[%clk 0:07:17.7]} 26. Kh2 {[%clk 0:07:57.6]} 26... b5
{[%clk 0:06:57]} 27. Bf1 {[%clk 0:07:49.2]} 27... bxa4 {[%clk 0:06:56.9]} 28.
Bc4 {[%clk 0:07:41.2]} 28... Rab7 {[%clk 0:06:55.8]} 29. Ra2 {[%clk 0:07:39.2]}
29... Rb4 {[%clk 0:06:30.6]} 30. Rc1 {[%clk 0:07:37.4]} 30... a5 {[%clk
0:06:13.6]} 0-1

[Event "GrandPrix_29.05"]
[Site "Chess.com"]
[Date "2020.05.29"]
[Round "3"]
[White "Benjoneliere44"]
[Black "KacperKacprzak"]
[Result "1-0"]
[WhiteElo "1953"]
[BlackElo "2053"]
[TimeControl "600+2"]
[EndTime "10:14:01 PDT"]
[Termination "Benjoneliere44 won by resignation"]

1. d4 {[%clk 0:10:01.9]} 1... Nf6 {[%clk 0:09:56.1]} 2. Bf4 {[%clk 0:10:02.3]}
2... d6 {[%clk 0:09:55.2]} 3. Nc3 {[%clk 0:10:01.1]} 3... Nbd7 {[%clk 0:09:53]}
4. Nf3 {[%clk 0:10:01.2]} 4... g6 {[%clk 0:09:53.3]} 5. e4 {[%clk 0:10:01.9]}
5... Bg7 {[%clk 0:09:54.8]} 6. Qd2 {[%clk 0:10:03]} 6... O-O {[%clk 0:09:51.3]}
7. Bh6 {[%clk 0:10:04]} 7... e5 {[%clk 0:09:49]} 8. Bxg7 {[%clk 0:10:05]} 8...
Kxg7 {[%clk 0:09:49.7]} 9. O-O-O {[%clk 0:10:04.5]} 9... Qe7 {[%clk 0:09:45.6]}
10. dxe5 {[%clk 0:09:57]} 10... Nxe5 {[%clk 0:09:46.1]} 11. h4 {[%clk
0:09:53.7]} 11... Be6 {[%clk 0:09:21.7]} 12. h5 {[%clk 0:09:51.9]} 12... Neg4
{[%clk 0:08:33.8]} 13. hxg6 {[%clk 0:09:48.2]} 13... fxg6 {[%clk 0:08:33.1]} 14.
Kb1 {[%clk 0:09:41.8]} 14... Kg8 {[%clk 0:07:53.4]} 15. Ng5 {[%clk 0:09:33.5]}
15... a6 {[%clk 0:07:31]} 16. Qd4 {[%clk 0:09:05.4]} 16... b5 {[%clk 0:07:13.3]}
17. Be2 {[%clk 0:08:59.7]} 17... Ne5 {[%clk 0:07:11.2]} 18. f4 {[%clk
0:08:55.6]} 18... Nc6 {[%clk 0:06:59.6]} 19. Qd2 {[%clk 0:08:35.2]} 19... Bc4
{[%clk 0:05:41.1]} 20. Bxc4+ {[%clk 0:08:25.5]} 20... bxc4 {[%clk 0:05:41.2]}
21. Nd5 {[%clk 0:08:27]} 1-0

[Event "GrandPrix_29.05"]
[Site "Chess.com"]
[Date "2020.05.29"]
[Round "3"]
[White "Fandorine"]
[Black "Rakhmanov_Aleksandr"]
[Result "1/2-1/2"]
[WhiteElo "2569"]
[BlackElo "2410"]
[TimeControl "600+2"]
[EndTime "10:14:13 PDT"]
[Termination "Game drawn by agreement"]

1. e4 {[%clk 0:10:01.9]} 1... e5 {[%clk 0:10:00.7]} 2. Nc3 {[%clk 0:09:51.2]}
2... Nf6 {[%clk 0:09:58.5]} 3. Bc4 {[%clk 0:09:44.3]} 3... Nxe4 {[%clk
0:09:56.3]} 4. Qh5 {[%clk 0:09:40.3]} 4... Nd6 {[%clk 0:09:48.4]} 5. Bb3 {[%clk
0:09:41]} 5... Be7 {[%clk 0:09:29.5]} 6. Qxe5 {[%clk 0:09:22.7]} 6... O-O {[%clk
0:09:25.4]} 7. d4 {[%clk 0:09:17.6]} 7... Nc6 {[%clk 0:08:43.2]} 8. Qf4 {[%clk
0:09:16.7]} 8... Na5 {[%clk 0:08:17.8]} 9. Nf3 {[%clk 0:09:16.3]} 9... Nxb3
{[%clk 0:08:10.5]} 10. axb3 {[%clk 0:09:18.2]} 10... Re8 {[%clk 0:08:09.9]} 11.
O-O {[%clk 0:09:17.8]} 11... b6 {[%clk 0:08:04.8]} 12. d5 {[%clk 0:09:11.1]}
12... Bf6 {[%clk 0:07:58.4]} 13. Be3 {[%clk 0:08:39.1]} 13... Bxc3 {[%clk
0:07:51.1]} 14. bxc3 {[%clk 0:08:40]} 14... Re4 {[%clk 0:07:52]} 15. Qg3 {[%clk
0:07:39]} 15... Nf5 {[%clk 0:07:28.7]} 16. Qg5 {[%clk 0:07:37.1]} 16... Qxg5
{[%clk 0:07:15.7]} 17. Bxg5 {[%clk 0:07:25.7]} 17... f6 {[%clk 0:06:54.5]} 18.
Bd2 {[%clk 0:07:24.2]} 18... Kf7 {[%clk 0:06:10.2]} 19. c4 {[%clk 0:07:15.5]}
19... d6 {[%clk 0:05:50.6]} 20. Rfe1 {[%clk 0:06:45.2]} 1/2-1/2

[Event "GrandPrix_29.05"]
[Site "Chess.com"]
[Date "2020.05.29"]
[Round "3"]
[White "SacrificeGod"]
[Black "Jan1401"]
[Result "0-1"]
[WhiteElo "2313"]
[BlackElo "2374"]
[TimeControl "600+2"]
[EndTime "10:14:15 PDT"]
[Termination "Jan1401 won by resignation"]

1. e4 {[%clk 0:10:01.9]} 1... e6 {[%clk 0:10:01.1]} 2. d4 {[%clk 0:09:59.8]}
2... d5 {[%clk 0:10:02.5]} 3. Nd2 {[%clk 0:09:55.8]} 3... Nc6 {[%clk 0:10:03.2]}
4. Ngf3 {[%clk 0:09:53.7]} 4... Nf6 {[%clk 0:10:04.3]} 5. e5 {[%clk 0:09:52.4]}
5... Nd7 {[%clk 0:10:05.2]} 6. Nb3 {[%clk 0:09:53.5]} 6... Be7 {[%clk
0:09:53.8]} 7. Bb5 {[%clk 0:09:35.3]} 7... a5 {[%clk 0:09:52.5]} 8. a4 {[%clk
0:09:31.7]} 8... Na7 {[%clk 0:09:51.8]} 9. Bd3 {[%clk 0:09:27]} 9... b6 {[%clk
0:09:50.5]} 10. c3 {[%clk 0:09:19.2]} 10... c5 {[%clk 0:09:50.8]} 11. Nbd2
{[%clk 0:09:17.7]} 11... Nc6 {[%clk 0:09:45.5]} 12. Qe2 {[%clk 0:09:16]} 12...
cxd4 {[%clk 0:09:42.1]} 13. cxd4 {[%clk 0:09:03.7]} 13... Nb4 {[%clk 0:09:42.8]}
14. Bb1 {[%clk 0:07:42.5]} 14... Ba6 {[%clk 0:09:41.5]} 15. Qe3 {[%clk
0:07:41.8]} 15... Rc8 {[%clk 0:09:28.2]} 16. Nf1 {[%clk 0:07:25.4]} 16... Nc2+
{[%clk 0:09:11.6]} 17. Bxc2 {[%clk 0:07:24.8]} 17... Rxc2 {[%clk 0:09:12.3]} 18.
Ng3 {[%clk 0:07:17.6]} 18... Bb4+ {[%clk 0:08:45.1]} 19. Kd1 {[%clk 0:07:15.7]}
19... Qc7 {[%clk 0:08:09.7]} 20. Ng5 {[%clk 0:06:07.8]} 20... h6 {[%clk
0:07:56.7]} 21. Nh3 {[%clk 0:05:53.5]} 21... O-O {[%clk 0:07:39.3]} 22. Nf4
{[%clk 0:05:47.6]} 22... Rc8 {[%clk 0:07:36.5]} 23. Nfh5 {[%clk 0:05:27.2]}
23... Rxb2 {[%clk 0:07:22.6]} 0-1

[Event "GrandPrix_29.05"]
[Site "Chess.com"]
[Date "2020.05.29"]
[Round "3"]
[White "cassoulet"]
[Black "Margency"]
[Result "0-1"]
[WhiteElo "1895"]
[BlackElo "1648"]
[TimeControl "600+2"]
[EndTime "10:14:28 PDT"]
[Termination "Margency won by resignation"]

1. e4 {[%clk 0:10:01.9]} 1... e5 {[%clk 0:09:57.3]} 2. Nf3 {[%clk 0:10:02.5]}
2... Nc6 {[%clk 0:09:55.8]} 3. Bc4 {[%clk 0:10:03.1]} 3... Nf6 {[%clk
0:09:56.3]} 4. d3 {[%clk 0:10:04]} 4... Bc5 {[%clk 0:09:57]} 5. c3 {[%clk
0:10:05.3]} 5... O-O {[%clk 0:09:56.3]} 6. Bb3 {[%clk 0:10:06.5]} 6... d5 {[%clk
0:09:53.5]} 7. exd5 {[%clk 0:10:07.2]} 7... Nxd5 {[%clk 0:09:54.1]} 8. O-O
{[%clk 0:10:08.8]} 8... Bg4 {[%clk 0:09:49]} 9. h3 {[%clk 0:09:39.6]} 9... Bh5
{[%clk 0:09:46.6]} 10. Re1 {[%clk 0:09:39.9]} 10... Kh8 {[%clk 0:09:15.6]} 11.
g4 {[%clk 0:09:05.6]} 11... Bg6 {[%clk 0:09:15.8]} 12. Nxe5 {[%clk 0:09:04.9]}
12... Nxe5 {[%clk 0:09:16.3]} 13. Rxe5 {[%clk 0:09:06.8]} 13... c6 {[%clk
0:09:17]} 14. d4 {[%clk 0:09:06.8]} 14... Bd6 {[%clk 0:09:17.6]} 15. Re1 {[%clk
0:09:00.5]} 15... Qh4 {[%clk 0:08:58.8]} 16. Qf3 {[%clk 0:08:54.2]} 16... f5
{[%clk 0:08:58]} 17. g5 {[%clk 0:08:37.3]} 17... Bh5 {[%clk 0:08:36.3]} 18. Qg2
{[%clk 0:08:32.4]} 18... f4 {[%clk 0:08:27.2]} 19. Re4 {[%clk 0:07:30.1]} 19...
Rf5 {[%clk 0:08:04.8]} 20. Kf1 {[%clk 0:06:23.8]} 20... Rxg5 {[%clk 0:07:45.6]}
21. Qh1 {[%clk 0:06:22.1]} 21... Rf8 {[%clk 0:07:28.2]} 22. Nd2 {[%clk
0:06:17.2]} 22... Ne3+ {[%clk 0:06:30.7]} 23. Ke1 {[%clk 0:05:44.4]} 23... Rg2
{[%clk 0:06:25.6]} 0-1